Cogmind - Beta 14 @@@ ROGUE MODE // 2024.12.26 @ 22:44:59 Player: Komeiji O. Result: Destroyed by D-53 Grenadier with Mini Grenade Launcher Performance ------------- Evolutions (0) 0 Regions Visited (2) 400 Robots Destroyed (25) 125 Value Destroyed (508) 508 Prototype IDs (0) 0 Alien Tech Used (0) 0 Bonus (0) 0 TOTAL SCORE: 1033 Bonus ------- None Cogmind --------- Core Integrity 0/250 Matter 300/300 Energy 249/250 System Corruption 0% Temperature Cool (0) Movement Rolling (140) Ox4 Location -10/Mines Parts ------- > --- POWER (1) -------- Ion Engine > --- PROPULSION (2) --- Wheel > --- UTILITY (2) ------ High-capacity Storage Unit > --- WEAPON (2) ------- Heavy Assault Rifle > --- INVENTORY (20) --- Ion Engine Light Treads Light Treads Wheel Heat Sink Improved Heat Sink High-capacity Matter Pod (200) Improved Terrain Scanner Seismic Detector Bomb Drone Bay Particle Gun Spread Laser Spread Laser Heavy Assault Rifle Heavy Assault Rifle Grenade Launcher Mining Laser Plasma Cutter Peak State ------------ > --- POWER ------------ Ion Engine > --- PROPULSION ------- Light Treads Compact Wheel > --- UTILITY ---------- Heat Sink High-capacity Storage Unit > --- WEAPON ----------- Heavy Assault Rifle Heavy Assault Rifle > --- INVENTORY -------- Ion Engine Light Treads Light Treads Wheel Wheel Improved Heat Sink High-capacity Matter Pod Improved Terrain Scanner Seismic Detector Seismic Detector Bomb Drone Bay Particle Gun Spread Laser Spread Laser Heavy Assault Rifle Heavy Assault Rifle Grenade Launcher Mining Laser Plasma Cutter [Rating: 13] Favorites ----------- Power Ion Engine Engine Ion Engine Propulsion Light Treads Treads Light Treads Wheel Compact Wheel Utility Heat Sink Device Heat Sink Storage High-capacity Storage Unit Protection Backup Plating I Weapon Heavy Assault Rifle Energy Gun Spread Laser Ballistic Gun Heavy Assault Rifle Build | -11 -10 -10 ------- Run | Yrd Mat Min Slots Evolved . | . . . Power . | . . . Propulsion . | . . . Utility . | . . . Weapon . | . . . Parts Attached 19 | 7 10 2 Power 3 | 1 2 . Engine 3 | 1 2 . Core . | . . . Reactor . | . . . Propulsion 4 | 2 1 1 Treads 2 | 2 . . Leg . | . . . Wheel 2 | . 1 1 Hover . | . . . Flight . | . . . Utility 6 | 2 3 1 Device 3 | 1 1 1 Storage 3 | 1 2 . Processor . | . . . Hackware . | . . . Protection . | . . . Artifact . | . . . Weapon 6 | 2 4 . Energy Gun 2 | . 2 . Energy Cannon . | . . . Ballistic Gun 4 | 2 2 . Ballistic Cannon . | . . . Launcher . | . . . Special Weapon . | . . . Impact Weapon . | . . . Slashing Weapon . | . . . Piercing Weapon . | . . . Special Melee Weapon . | . . . Unidentified Prototypes . | . . . Parts Lost 6 | . 2 4 Power 1 | . 1 . Propulsion 3 | . 1 2 Utility 1 | . . 1 Weapon 1 | . . 1 Highest Loss Streak 3 | . 2 3 To Critical Strikes . | . . . Average Slot Usage (%) 97 | . 95 99 Engine 13 | . 13 14 Treads 17 | . 22 14 Wheel 9 | . 5 13 Device 12 | . 10 13 Storage 14 | . 14 14 Energy Gun 6 | . 13 . Ballistic Gun 21 | . 14 28 Peak Build Rating 13 | 7 11 13 Average Rating 10 | 5 9 11 On Entrance 6 | . 7 11 Naked Turns . | . . . Heaviest Build 52 | 13 52 52 Greatest Support 40 | 40 40 16 Greatest Overweight (x) 5 | . 3 5 Average Overweight (x) 1 | . . 3 Largest Inventory Capacity 20 | 8 20 20 Average Capacity 15 | 7 12 20 Most Carried 20 | 7 16 20 Average Carried 14 | 4 11 18 Final Capacity 20 | 8 20 20 Final Carried 19 | 7 16 19 Class Distribution -------------------- 100% | Mutant Dominant Class ---------------- Mutant | -10/Materials Mutant | -10/Mines Resources | -11 -10 -10 ----------- Run | Yrd Mat Min Matter Collected 506 | 280 127 99 Remotely . | . . . Salvage Created 602 | 51 318 233 Parts 51 | 6 28 17 Haulers Intercepted . | . . . Recyclers Shooed . | . . . Parts Field Recycled . | . . . Retrieved Matter . | . . . Parts Self-Destructed . | . . . Prevented . | . . . Kills | -11 -10 -10 ------- Run | Yrd Mat Min Combat Hostiles Destroyed 19 | . 15 4 Guns 19 | . 15 4 Classes Destroyed 3 | 1 2 . Tunneler 6 | 2 1 3 Swarmer 9 | . 9 . Grunt 10 | . 6 4 Best Kill Streak 7 | 1 7 2 Combat Bots Only 7 | . 7 2 Max Kills in Single Turn 1 | 1 1 1 Gunslinging . | . . . Exploded . | . . . Melee . | . . . Uniques/NPCs Destroyed . | . . . Combat | -11 -10 -10 -------- Run | Yrd Mat Min Hostile Shots Fired 115 | . 99 16 Missed 23 | . 20 3 Damage Taken 1059 | . 722 337 Core 276 | . 157 119 Absorbed by Shields . | . . . Core Remaining (%) 100 | 100 . . Volleys Fired 46 | 5 27 14 Largest 2 | 2 2 2 Hottest 130 | 40 130 46 Shots Fired 85 | 10 47 28 Gun 85 | 10 47 28 Cannon . | . . . Launcher . | . . . Special . | . . . Kinetic 52 | 10 14 28 Thermal 33 | . 33 . Explosive . | . . . Electromagnetic . | . . . Robot Hit Streak 9 | 4 9 4 Robot Miss Streak 7 | 1 7 3 Penetration Max . | . . . Secondary Targets 4 | . 4 . Max Gunslinging Chain 1 | . 1 . Shots Hit Robots 60 | 7 39 14 Core Hits 60 | 4 47 9 Critical Kills . | . . . Critical Parts Destroyed . | . . . Critical Strikes . | . . . Melee Attacks . | . . . Impact . | . . . Slashing . | . . . Piercing . | . . . Sneak Attacks . | . . . Combat Hostiles . | . . . Follow-up Attacks . | . . . Damage Inflicted 803 | 50 525 228 Guns 793 | 50 515 228 Cannons . | . . . Explosions . | . . . Melee . | . . . Ramming 10 | . 10 . Kinetic 422 | 50 144 228 Thermal 371 | . 371 . Explosive . | . . . Electromagnetic . | . . . Impact . | . . . Slashing . | . . . Piercing . | . . . Highest Corruption . | . . . Average Corruption . | . . . Corruption Purged . | . . . Corruption Blocked . | . . . Overload Shots . | . . . Overflow Damage . | . . . Projectiles . | . . . Explosions . | . . . Melee . | . . . Knockbacks . | . . . Impact . | . . . Kinetic . | . . . Secondary . | . . . Self-Inflicted Damage . | . . . Shots . | . . . Rammed 1 | . 1 . Targets Rammed 1 | . 1 . Kicked . | . . . Crushed . | . . . Highest Temperature 318 | . 318 . Average Temperature 159 | . 159 . Received Heat Transfer 198 | . 138 60 Effects 3 | . 3 . Interference 3 | . 3 . Siege Activations . | . . . Robots Corrupted . | . . . Combat Hostiles . | . . . Parts Fried . | . . . Impact Corruptions . | . . . Robots Melted . | . . . Combat Hostiles . | . . . Parts Melted . | . . . Heat Transferred 470 | . 470 . Parts Sabotaged . | . . . Parts Stolen . | . . . Parts Stripped . | . . . Power Chain Reactions . | . . . Alert | -11 -10 -10 ------- Run | Yrd Mat Min Peak Influence 341 | 10 341 197 Initial 132 | . 6 132 Average 103 | 3 121 107 Maximum Alert Level 1 | . 1 . Low Security (%) 91 | 100 81 100 Level 1 8 | . 18 . Level 2 . | . . . Level 3 . | . . . Level 4 . | . . . Level 5 . | . . . High Security . | . . . Max Security . | . . . Squads Dispatched 2 | . 2 . Investigation 1 | . 1 . Extermination . | . . . Reinforcement 1 | . 1 . Assault . | . . . Garrison . | . . . Intercept . | . . . Searches Triggered . | . . . Construction Impeded . | . . . Haulers Reinforced . | . . . Active Scanning Responses . | . . . Cargo Convoy Interrupts . | . . . Stealth | -11 -10 -10 --------- Run | Yrd Mat Min Distress Signals 1 | . 1 . Communications Jammed . | . . . Distress Signals . | . . . Times Spotted 29 | . 23 6 Peak Tracking Total 9 | . 9 2 Tactical Retreats 1 | . 1 . Traps | -11 -10 -10 ------- Run | Yrd Mat Min Traps Triggered 1 | . 1 . Indirectly . | . . . Trap Hack Attempts . | . . . Triggered . | . . . Disarmed . | . . . Reprogrammed . | . . . Reused . | . . . Traps Extracted . | . . . Installed . | . . . Triggered . | . . . Machines | -11 -10 -10 ---------- Run | Yrd Mat Min Machines Disabled 1 | . 1 . Max in Single Turn 1 | . 1 . Machines Repaired . | . . . Machines Dismantled . | . . . Machines Sabotaged . | . . . Overloaded Fab Kills . | . . . Hacking | -11 -10 -10 --------- Run | Yrd Mat Min Machines Accessed 8 | . 7 1 Terminals 6 | . 6 . Fabricators . | . . . Repair Stations 1 | . 1 . Recycling Units . | . . . Scanalyzers . | . . . Garrison Access . | . . . Total Hacks 19 | . 18 1 Successful 9 | . 8 1 Failed 10 | . 10 . Catastrophic 2 | . 2 . Database Lockouts . | . . . Manual 14 | . 14 . Terminals 17 | . 17 . Fabricators . | . . . Repair Stations 1 | . 1 . Recycling Units . | . . . Scanalyzers . | . . . Garrison Access . | . . . Terminal Hacks 4 | . 3 1 Robot Analysis 1 | . 1 . Open Door 1 | . . 1 Terminal Index 1 | . 1 . Locate Traps 1 | . 1 . Fabricator Hacks . | . . . Repair Station Hacks 1 | . 1 . Refit 1 | . 1 . Recycling Unit Hacks . | . . . Scanalyzer . | . . . Garrison Access Hacks . | . . . Unauthorized Hacks 4 | . 4 . Terminals 4 | . 4 . Skim 4 | . 4 . Fabricators . | . . . Repair Stations . | . . . Recycling Units . | . . . Scanalyzers . | . . . Garrison Access . | . . . Data Cores Recovered . | . . . Used . | . . . Hacking Detections 6 | . 6 . Full Trace Events . | . . . Feedback Events . | . . . Feedback Blocked . | . . . Robot Schematics Acquired . | . . . Robots Built . | . . . Authchips . | . . . Time . | . . . Total Robot Build Rating . | . . . Part Schematics Acquired . | . . . Parts Built . | . . . Authchips . | . . . Time . | . . . Total Part Build Rating . | . . . Parts Repaired . | . . . Time . | . . . Parts Recycled . | . . . Recycled Matter . | . . . Retrieved Matter . | . . . Retrieved Components . | . . . Parts Scanalyzed . | . . . Part Schematics Acquired . | . . . Parts Damaged . | . . . Bothacking | -11 -10 -10 ------------ Run | Yrd Mat Min Used RIF Installer . | . . . Robots Hacked . | . . . Non-combat . | . . . Combat . | . . . Robot Hacks Applied . | . . . Relay Couplers Released . | . . . Fabnet Peak Effective % . | . . . Robots Rewired . | . . . Allies Hacked . | . . . Hacks Repelled . | . . . Allies | -11 -10 -10 -------- Run | Yrd Mat Min Total Allies . | . . . Largest Group . | . . . Highest-Rated Group . | . . . Highest-Rated Ally . | . . . Total Orders . | . . . Ally Attacks . | . . . Total Damage . | . . . Kills . | . . . Allies Corrupted . | . . . Allies Melted . | . . . Intel | -11 -10 -10 ------- Run | Yrd Mat Min Robot Analysis Total 1 | . 1 . Derelict Logs Recovered 2 | . . 2 Drone Launches . | . . . Drone Recoveries . | . . . Exploration | -11 -10 -10 ------------- Run | Yrd Mat Min Turns Passed 1662 | 155 736 771 Spaces Moved 997 | 80 433 484 Core 2 | 2 . . Treads 318 | 78 240 . Legs . | . . . Wheels 677 | . 193 484 Hover . | . . . Flight . | . . . Fastest Speed 50 | 50 115 140 Average Speed 146 | 157 143 147 Slowest Speed 240 | 160 240 155 Overloaded Moves . | . . . Propulsion Burnouts . | . . . Robots Hopped . | . . . Cave-ins Triggered . | . . . Exploration Rate (%) 56 | 4 74 92 Regions Visited 2 Branch Regions 1 Pre-discovered Areas 1 | . . 1 Known Exits Taken . | . . . Unknown Exits Taken 2 | 1 1 . Scrap Searched 2 | . . 2 Spaces Dug . | . . . Terrain Destroyed . | . . . Melee . | . . . Projectile . | . . . AOE . | . . . Terrain Rammed . | . . . Walls Destroyed . | . . . Machines Disabled . | . . . Actions | -11 -10 -10 --------- Run | Yrd Mat Min Total 1120 | 98 507 515 Wait 6 | . 2 4 Move 995 | 79 432 484 Hop . | . . . Pick Up 33 | 7 19 7 Fast Attach 11 | 7 4 . Attach 2 | . 1 1 Detach 2 | . 2 . Swap 6 | . 5 1 Drop 18 | . 14 4 Fire 46 | 5 27 14 Melee . | . . . Ram . | . . . Kick . | . . . Crush 1 | . 1 . Escape Stasis . | . . . Rewire . | . . . Trap . | . . . Miscellaneous . | . . . Route ------- -11/Scrapyard -10/Materials (discovered 4 exits: [*Mat x2] / *Min x2) -10/Mines (discovered 3 exits: [*Mat] / [*Exi] / [*Sub]) History --------- Turn | Location | Event 19 | -11/Scrapyard | Discovered new exit (range 15) 156 | -11/Scrapyard | Entered Materials 331 | -10/Materials | Build established: Mutant 352 | -10/Materials | Discovered new exit (range 4) 556 | -10/Materials | Discovered new exit (range 15) 581 | -10/Materials | Core integrity fell below 50% 624 | -10/Materials | Destroyed 7 combat bots 798 | -10/Materials | Discovered new exit (range 12) 850 | -10/Materials | Discovered new exit (range 5) 892 | -10/Materials | Entered Mines 1033 | -10/Mines | Learned location of Zion (-6) 1226 | -10/Mines | Learned Materials terminal intel 1239 | -10/Mines | Discovered new exit (range 16) 1353 | -10/Mines | Deemed a non-threat by the Exiles lab entrance 1353 | -10/Mines | Discovered new exit (range 5) 1411 | -10/Mines | Found the Drone Emporium 1419 | -10/Mines | Found Prototype Device 1593 | -10/Mines | Discovered new exit (range 6) 1630 | -10/Mines | Assembled infested the area 1662 | -10/Mines | Core integrity fell below 20% 1663 | -10/Mines | Destroyed by D-53 Grenadier with Mini Grenade Launcher Last Messages --------------- 01456_ Com. Wheel destroyed. 01459_ G-47 Trooper destroyed. 01463_ Acquired 23 matter. 01543_ Searching scrap... 01543_ Found Lgt. Armor Plating. 01543_ Found Hcp. Storage Unit. 01543_ Found 38 Matter. 01587_ T-07 Excavator is excavating. 01593_ EXIT=FOUND 01594_ U-05 Engineer lays Concrete. 01599_ U-05 Engineer builds a Wall. 01630_ ALERT: Infestation in the mines, dispatching Demolisher response squad. 01634_ T-07 Excavator destroyed. 01655_ K-01 Serf cleans the Matter Pump. 01658_ C-30 ARC bursts open, deploying its payload. 01658_ D-53 Grenadier unfolds itself. 01659_ Seismic Detector destroyed. 01660_ Hvy. Assault Rifle destroyed. 01661_ Lgt. Treads destroyed. Map ----- +----------------------------------------------------+ | ###???????????????????# ##" "#?? | | #???????????????????# #### ### ##?? | | #???????????????????## ###??####% #### ###?? | | #????????????????????#####???###### ## X #?? | | ##??????????????#####???????## ## ##? | | ##????????????## ##?###### ## #? | | ##??????????## ### =* ## #? | | #?????????## """ [%%### < #? | | #######???# """ !=##### #? | | #???# """ ########## #? | | # ###### #???# ### #??# #? | | #####????# #???## ##?## #??# #? | | ?????????# #????# ##???######## #??# #? | | ?????????# ####### ##?????????## #??# #? | | ?????????# #?????##### ############? | | ?????????# #?????# ##????????? | | ?????????######### ##?????# #????????? | | ?????????????????## ##??????## ##???????? | | ??????????????????# #######???### ##??????? | | ??????????????????# # # ##????#### #??????? | | ?????????##########d ##??????## #??????? | | ?????????# d ##?????## ##?????? | | ?????????# #### # #???### ##????? | | ????###### #??# ## #???## ##???? | | " ## #??# ## ##### ##??? | | " #??# ### @ #??? | | " ####??# #?# #??? | | #????## #### ##??? | | #????# ## ## ##???? | | # ##????# ## ### #### ##????? | | ## ####?????# ## ##?## ##??# ##????? | | ?###????????#< ### ##???# #???# #????? | | ????????????### ##?####????## #???# #????? | | ??????????????####???????????### #???## ##???? | | ???????????????????????????????# #????# #???? | | ???????????????????????????????# !#????# #???? | | ????????????????????????########% #????## #??? | | ????????????????? ! #?????## #?? | | ????????????????? #??????## #?? | | ????????????????????###############????????# ##?? | | ????????????????????????????????????????????###??? | | ?????????????????????????????????????????????????? | | | | | | | | | | | | | | | | | +----------------------------------------------------+ Best States ------------- Heat Dissipation 35 Energy Generation 10 Energy Capacity 250 Matter Stores 300 Matter Capacity 300 Sight Range 16 Terrain Scan Density 10 Armor Coverage 80 Evasion (%) 40 Recoil Reduction 2 Item Schematics ----------------- None Robot Schematics ------------------ None Fabricated ------------ Nothing Alien Tech Used ----------------- None Achievements -------------- None Challenges ------------ None Game ------ Seed FactoryInsulationKit Manual? 0 Play Time 00:14:44 Cumulative 251.2 hours Start 2024.12.26 @ 22:33:58 End 2024.12.26 @ 22:44:59 Sessions 1 Manual Loads 0 Difficulty Rogue Special Mode None Game No. 88 Rogue 87 Adventurer 1 Explorer 0 Win Type - Total 7 Types 6/0/1/0/0/0/0/0/0 Lore% 66 Gallery% 75 Achievement% 62 Wizard Run 0 Options --------- Layout 0 ASCII 1 Keyboard 1 Movement Vi Keybinds 0 Fullscreen 2 Font 36/Terminus++ Map View 76x50 Zoom Use 0% Tactical HUD 1 Map Filters NONE Filters NONE Steam 1 RUN: f774c59d-62d1-4c88-a9c0-332df6442ed2